bitfinex/quotes_ETHUSD_20241106
["timestamp","ask_amount","ask_price","bid_price","bid_amount"]
[1730898567166,3.8026,2629.8,2629.5,0.8259]
[1730898567571,3.80207,2630.2,2629.5,0.8259]
[1730898567799,3.80253,2629.9,2629.5,0.8259]
[1730898568005,1.0194745,2630.3,2629.0,0.7856]
[1730898568006,4.33887485,2630.1,2629.0,0.7856]
[1730898568173,3.80331,2629.3,2629.0,0.7856]
[1730898568480,3.80344,2629.2,2629.0,0.7856]
[1730898568901,3.80358,2629.1,2629.0,0.7856]
[1730898569101,3.8033,2629.3,2629.0,0.7856]
[1730898569273,3.80344,2629.2,2629.0,0.7856]
[1730898569461,3.8033,2629.3,2629.0,0.7856]
[1730898569462,3.80358,2629.1,2629.0,0.7856]
[1730898569698,7.60672,2629.3,2629.0,0.7856]
[1730898569908,3.8033,2629.3,2629.0,0.7856]
[1730898572684,3.80345,2629.2,2629.0,0.7856]
[1730898573002,1.522064,2629.3,2628.6,0.8241]
[1730898573303,1.522064,2629.3,2628.3,0.40586706]
[1730898573304,3.80286,2629.6,2629.0,4.62775]
[1730898573472,0.8241,2629.7,2629.3,3.80327]
[1730898573673,3.80221,2630.1,2629.5,0.8319]
[1730898573887,3.80221,2630.1,2629.6,0.0760515]
[1730898574064,3.80221,2630.1,2629.5,4.6348]
[1730898574286,3.80221,2630.1,2629.6,0.46348]
[1730898574491,5.323572,2630.3,2629.6,4.26625]
[1730898574689,5.323572,2630.3,2629.6,0.46348]
[1730898575109,3.80236,2630.0,2629.6,0.46348]
[1730898575291,1.521652,2630.3,2629.6,0.46348]
[1730898575508,7.60506,2629.9,2629.5,0.8319]
[1730898575735,3.80253,2629.9,2629.5,0.8319]
[1730898576517,7.60444,2630.1,2629.5,4.63489]
[1730898576712,7.60445,2630.1,2629.6,0.843801]
[1730898576941,3.80242,2629.9,2629.6,0.843801]
[1730898578292,3.80281,2629.7,2629.1,0.843161]
[1730898578649,0.5417,2630.1,2628.5,0.01]
[1730898578650,3.80307,2629.5,2628.9,3.8038]
[1730898578793,3.80332,2629.3,2628.8,4.63477]
[1730898579000,3.80332,2629.3,2628.8,0.8309]
[1730898579194,3.80332,2629.3,2628.9,0.463504]
[1730898579452,3.8035,2629.2,2628.9,0.463504]
[1730898579647,3.8035,2629.2,2628.8,0.8309]
[1730898579933,7.60623,2629.5,2628.9,3.80384]
[1730898580099,3.80334,2629.3,2628.9,0.07606732]
[1730898580950,3.80334,2629.3,2628.8,4.63489]
[1730898581124,0.760653,2629.3,2628.3,0.39586706]
[1730898581500,3.80365,2629.1,2628.5,3.80443]
[1730898581511,3.80334,2629.3,2628.7,3.80415]
[1730898581845,3.80334,2629.3,2628.9,0.8034]
[1730898581953,3.80314,2629.4,2628.9,0.8034]
[1730898582101,3.80271,2629.7,2629.1,3.80352]
[1730898582299,3.80267,2629.8,2628.9,0.87947072]
[1730898582300,7.60533,2629.8,2629.2,3.80334]
[1730898582602,3.80273,2629.7,2629.0,3.80372]
[1730898582805,3.80302,2629.5,2629.0,4.264432]
[1730898583043,3.80302,2629.5,2629.0,0.460712]
[1730898583533,7.60615,2629.5,2629.0,0.460712]
[1730898583846,3.80302,2629.5,2629.0,0.460712]
[1730898584139,3.80339,2629.3,2629.0,0.460712]
[1730898584314,3.80334,2629.3,2628.9,0.8034]
[1730898584514,0.5417,2629.6,2628.9,0.8034]
[1730898584711,0.5417,2629.6,2628.5,3.80435]
[1730898584712,3.80365,2629.1,2628.6,0.804]
[1730898584913,7.60733,2629.1,2628.7,0.841273]
[1730898585134,7.60731,2629.1,2628.7,0.841273]
[1730898585322,3.80365,2629.1,2628.6,0.804]
[1730898585769,3.80319,2629.4,2628.6,0.804]
[1730898586068,3.80353,2629.2,2628.6,0.804]
[1730898586273,3.80353,2629.2,2628.6,1.264833]
[1730898586562,3.80353,2629.2,2628.6,5.069063]
[1730898586924,7.60706,2629.2,2628.6,5.069063]
[1730898587446,3.80353,2629.2,2628.6,5.069063]
[1730898587654,0.5417,2629.6,2628.6,1.264833]
[1730898587655,3.80294,2629.6,2628.6,1.264833]
[1730898587838,3.80294,2629.6,2629.1,0.7535]
[1730898588036,3.80302,2629.5,2629.1,0.7535]
[1730898588359,3.8033,2629.3,2629.1,0.7535]
[1730898588567,3.80344,2629.2,2628.7,4.57938]
[1730898588725,3.8033,2629.3,2628.8,0.838357]
[1730898589157,3.80347,2629.2,2628.8,0.838357]
[1730898589364,3.80367,2629.1,2628.7,0.7753]
[1730898589566,3.80339,2629.3,2628.8,0.07607484]
[1730898589889,8.14115485,2630.0,2628.9,3.80373]
[1730898589890,3.80301,2629.5,2628.9,3.80373]
[1730898590062,3.80292,2629.6,2628.9,3.80373]
[1730898590303,3.80292,2629.6,2629.1,3.80356]
[1730898590864,3.80272,2629.7,2629.2,3.80343]
[1730898591175,3.80272,2629.7,2629.3,0.7967]
[1730898591298,3.80225,2630.1,2629.3,4.67604158]
[1730898591476,3.8025,2629.9,2629.4,3.80306]
[1730898591685,3.8025,2629.9,2629.4,4.263036]
[1730898592367,3.8025,2629.9,2629.4,0.459976]
[1730898592570,3.8025,2629.9,2629.4,4.263086]
[1730898593182,3.8025,2629.9,2629.4,0.459976]
[1730898593383,3.80261,2629.8,2629.4,0.459976]
[1730898593604,4.33887485,2630.0,2628.7,0.7782]
[1730898593760,3.80308,2629.5,2629.0,3.80363]
[1730898593989,3.80308,2629.5,2628.9,3.80384]
[1730898594164,3.80322,2629.4,2628.9,4.262044]
[1730898594389,3.80294,2629.6,2629.0,3.80358]
[1730898594620,4.34436,2629.8,2629.2,3.80333]
[1730898594803,3.80296,2629.6,2629.1,3.80351]
[1730898594982,3.80301,2629.5,2629.0,0.7976]
[1730898595268,3.80316,2629.4,2629.0,0.7976]
[1730898595507,3.8033,2629.3,2629.0,0.7976]
[1730898595717,3.80316,2629.4,2629.0,0.7976]
[1730898596062,0.380316,2629.4,2628.7,3.80403]
[1730898596286,3.8036,2629.1,2628.7,4.61023]
[1730898596673,3.80329,2629.3,2628.7,4.61023]
[1730898597182,3.80344,2629.2,2628.7,4.61023]
[1730898597802,3.80329,2629.3,2628.8,3.80393]
[1730898597993,3.80329,2629.3,2628.8,3.88000258]
[1730898598607,3.80329,2629.3,2628.8,4.42059186]
[1730898598940,3.8031,2629.5,2628.9,3.80375]
[1730898598941,3.80316,2629.4,2628.9,3.80375]
[1730898599440,3.80342,2629.3,2628.7,4.61028]
[1730898599635,3.80342,2629.3,2628.8,3.8039]
[1730898599839,3.80338,2629.3,2628.8,3.80395]
[1730898600208,3.80338,2629.3,2628.7,0.8062]
[1730898600412,3.80353,2629.2,2628.7,4.61032]
[1730898600630,0.5417,2629.8,2628.8,0.07607065]
[1730898600842,3.80309,2629.5,2629.0,3.80365]
[1730898601137,4.34432,2629.8,2629.2,3.80341]
[1730898601347,3.80273,2629.7,2629.2,4.56281]
[1730898601531,3.80313,2629.5,2628.9,3.80376]
[1730898601853,3.80322,2629.4,2628.9,3.80376]
[1730898602540,3.80322,2629.4,2629.0,3.8037]
[1730898603751,3.80322,2629.4,2628.8,0.7594]
[1730898603916,3.80322,2629.4,2628.9,3.80385]
[1730898604106,7.60647,2629.4,2628.9,3.80385]
[1730898604320,0.35506221,2629.3,2628.9,3.80385]
[1730898604610,3.80322,2629.4,2628.9,3.80385]
[1730898604825,0.35507534,2629.3,2628.9,3.80385]
[1730898605020,3.80322,2629.4,2628.9,3.80385]
[1730898605292,0.3550866,2629.3,2628.9,3.80385]
[1730898605566,0.3550866,2629.2,2628.9,3.80385]
[1730898605773,3.80322,2629.4,2628.9,3.80385]
[1730898606069,3.80322,2629.4,2628.8,1.215744]
[1730898606070,3.80351,2629.2,2628.8,0.7594]
[1730898606279,0.35530051,2629.1,2628.8,4.56341]
[1730898606588,3.80351,2629.2,2628.8,4.56341]
[1730898606769,0.35537514,2629.1,2628.8,4.56341]
[1730898606953,3.80351,2629.2,2628.8,4.56341]
[1730898607140,0.35537309,2629.1,2628.8,4.56341]
[1730898607440,3.80332,2629.3,2628.9,3.80381]
[1730898607760,0.35545648,2629.2,2628.9,3.80381]
[1730898607942,0.35545648,2629.1,2628.9,3.8038]
[1730898608280,3.80326,2629.4,2628.9,3.87986749]
[1730898608598,3.80326,2629.4,2628.8,4.56341]
[1730898608599,3.80341,2629.3,2628.8,4.56341]
[1730898608876,3.80348,2629.2,2628.8,4.56341]
[1730898609038,4.15910968,2629.1,2628.7,3.80408]
[1730898609371,0.35545968,2629.0,2628.7,3.80408]
[1730898609577,3.80365,2629.1,2628.7,3.80408]
[1730898609732,0.35547744,2629.0,2628.7,3.80408]
[1730898609936,0.5417,2629.3,2628.5,0.7994]
[1730898610138,3.80424,2628.7,2628.2,0.8085]
[1730898610369,3.804,2628.9,2628.4,3.80452]
[1730898610570,4.7283691,2628.8,2628.4,3.80452]
[1730898610762,0.35551026,2628.7,2628.4,3.80452]
[1730898610955,3.8036,2629.1,2628.7,3.80415]
[1730898611199,0.92429431,2629.0,2628.7,3.80415]
[1730898611475,4.345,2629.3,2628.8,4.5859]
[1730898611693,0.92410347,2629.2,2628.8,4.58591]
[1730898611981,4.345,2629.3,2628.8,5.424824]
[1730898611982,0.35542441,2629.1,2628.8,5.424824]
[1730898612134,3.80337,2629.3,2628.8,5.424824]
[1730898612475,3.80316,2629.4,2628.9,3.80379]
[1730898612476,0.35543752,2629.2,2628.9,3.80379]
[1730898612674,0.35543752,2629.1,2628.9,3.80379]
[1730898612891,3.80316,2629.4,2628.8,5.424824]
[1730898613073,0.92413512,2629.3,2628.9,3.80387]
[1730898613397,0.35543658,2629.2,2628.9,3.80387]
[1730898613594,0.35543658,2629.1,2628.9,3.80387]
[1730898613793,3.80304,2629.5,2629.0,3.80372]
[1730898613954,3.80304,2629.5,2629.1,3.80354]
[1730898613955,0.92420325,2629.4,2629.1,3.80354]
[1730898614154,1.10872,2629.6,2629.1,3.80354]
[1730898614155,0.35546279,2629.3,2629.1,3.80354]
[1730898614460,3.80273,2629.7,2629.3,0.8177]
[1730898614461,3.80272,2629.7,2629.3,0.8177]
[1730898614774,0.92411844,2629.6,2629.3,5.463429]
[1730898615077,0.35543017,2629.5,2629.3,5.463429]
[1730898615317,0.35543017,2629.4,2629.3,4.62096]
[1730898615875,0.59243281,2630.1,2629.3,0.8177]
[1730898616059,3.80308,2629.5,2629.0,4.55925]
[1730898616300,3.80315,2629.4,2629.0,4.55925]
[1730898616545,4.15857212,2629.4,2629.0,4.55925]
[1730898616672,3.80312,2629.5,2629.0,4.55923]
[1730898616855,0.35541716,2629.4,2629.0,4.55923]
[1730898617065,7.6062,2629.5,2629.0,4.55923]
[1730898617390,3.80329,2629.3,2629.0,0.7556]
[1730898617876,0.35543368,2629.2,2629.0,0.7556]
[1730898618099,3.80315,2629.4,2629.0,4.55931]
[1730898618292,0.35545976,2629.3,2629.0,4.55931]
[1730898618500,0.35545976,2629.2,2629.0,5.47168633]
[1730898618792,3.80308,2629.5,2629.0,5.47168633]
[1730898618953,3.8035,2629.2,2629.0,0.7556]
[1730898619151,4.15911823,2629.1,2628.7,0.7679]
[1730898619393,0.35546823,2629.0,2628.7,0.7679]
[1730898619582,3.80375,2629.0,2628.7,0.7679]
[1730898619793,0.35549777,2628.9,2628.7,0.7679]
[1730898620003,0.35549777,2628.8,2628.7,0.7679]
[1730898620161,0.35549777,2628.8,2628.6,3.80424]
[1730898620359,3.80365,2629.1,2628.6,4.641904]
[1730898620697,0.92437368,2629.0,2628.7,3.80415]
[1730898621011,4.15945834,2628.9,2628.5,0.7679]
[1730898621152,0.35552834,2628.8,2628.5,0.7679]
[1730898621366,3.80376,2629.0,2628.5,5.48603302]
[1730898621556,0.35560071,2628.9,2628.5,5.48603302]
[1730898621856,0.35560071,2628.8,2628.5,5.48603302]
[1730898622183,3.80376,2629.0,2628.5,5.48603302]
[1730898622358,0.35565312,2628.9,2628.5,5.48603302]
[1730898622560,0.35565312,2628.8,2628.5,1.605592]
[1730898622755,3.80386,2629.0,2628.4,0.07608307]
[1730898623064,3.80405,2628.8,2628.4,3.80457]
[1730898623269,0.35566959,2628.7,2628.4,3.80457]
[1730898623465,4.70166959,2628.6,2628.1,3.80498]
[1730898623698,0.35566959,2628.5,2628.1,7.60996]
[1730898624017,0.35566959,2628.4,2628.1,4.642346]
[1730898624165,3.80417,2628.7,2628.2,3.80477]
[1730898624363,0.92483215,2628.6,2628.1,4.642276]
[1730898624570,0.35570467,2628.5,2628.1,0.837346]
[1730898624809,0.35570467,2628.5,2628.0,0.7635]
[1730898624810,0.5417,2628.9,2628.3,3.80471]
[1730898624993,4.72875088,2628.8,2628.3,3.80471]
[1730898625276,0.35566188,2628.7,2628.3,3.80465]
[1730898625507,1.06640469,2630.2,2628.5,3.80445]
[1730898625508,3.80294,2629.6,2628.5,3.80445]
[1730898625719,0.92446149,2629.5,2629.0,3.80361]
[1730898626012,3.80294,2629.6,2628.6,0.460055]
[1730898626013,3.80369,2629.1,2628.6,0.460055]
[1730898626184,0.92446149,2629.0,2628.5,3.80435]
[1730898626371,0.92447709,2628.9,2628.5,3.80435]
[1730898626600,3.80373,2629.0,2628.5,7.60872]
[1730898626784,0.35557872,2628.8,2628.7,3.80406]
[1730898627203,3.80338,2629.3,2628.7,3.80406]
[1730898627510,0.92439496,2629.2,2628.7,3.80406]
[1730898627712,0.92439496,2629.1,2628.6,3.80429]
[1730898627869,0.35553652,2629.0,2628.8,3.804]
[1730898628064,0.35553652,2628.9,2628.8,3.804]
[1730898628366,4.34449,2629.7,2629.1,3.80356]
[1730898628731,0.92428295,2629.6,2629.1,3.80346]
[1730898629014,0.92428295,2629.5,2629.3,3.80321]
[1730898629323,0.35549344,2629.4,2629.3,3.80321]
[1730898629502,4.344,2630.0,2629.4,3.80309]
[1730898629798,0.9241824,2629.9,2629.4,3.80309]
[1730898630098,0.5417,2630.0,2629.5,3.80295]
[1730898630281,0.35545708,2629.8,2629.5,3.80295]
[1730898630595,0.92414366,2629.7,2629.6,3.80274]
[1730898630797,0.5417,2630.4,2629.9,3.80236]
[1730898631112,0.92398612,2630.3,2629.9,3.80234]
[1730898631285,0.92398612,2630.2,2629.9,3.80234]
[1730898631486,3.80136,2630.7,2629.9,3.80234]
[1730898631487,0.35537928,2630.1,2630.0,3.80217]
[1730898631692,0.35537928,2630.1,2630.0,4.645471]
[1730898631902,0.35537928,2630.1,2630.0,4.72150897]
[1730898632113,4.34284,2630.8,2630.4,3.80168]
[1730898632114,0.5417,2630.8,2630.4,3.80168]
[1730898632265,0.92317039,2630.7,2630.4,3.80168]
[1730898632473,0.92317039,2630.6,2630.5,0.06454361]
[1730898632781,0.92318539,2630.6,2630.5,0.06454361]
[1730898632986,0.35506553,2630.6,2630.3,4.5707]
[1730898633301,4.23238029,2630.9,2630.0,0.843301]
[1730898633302,3.80126,2630.7,2630.5,0.06454361]
[1730898633607,1.46446333,2630.6,2629.8,4.60477]
[1730898633806,0.5417,2630.6,2630.0,3.8022]
[1730898633968,0.5417,2630.6,2629.8,0.8023]
[1730898633969,0.35493498,2630.5,2629.9,0.0650024]
[1730898634176,4.15672498,2630.4,2629.9,0.0650024]
[1730898634373,0.4156725,2630.3,2629.9,0.0650024]
[1730898635211,4.34321,2630.6,2629.9,0.0650024]
[1730898635212,4.34321,2630.6,2630.0,4.58798]
[1730898635511,0.35474617,2630.5,2630.2,3.80197]
[1730898635704,0.5417,2630.7,2630.2,3.80199]
[1730898635930,0.42323803,2630.8,2630.3,3.86667432]
[1730898636078,0.35472074,2630.7,2630.3,3.86667432]
[1730898636337,0.42323803,2630.8,2630.3,3.86667432]
[1730898636681,0.4224218,2630.7,2630.3,0.06483432]
[1730898636890,4.22438803,2630.8,2630.0,4.58806]
[1730898637101,0.35458075,2630.7,2630.0,4.58806]
[1730898637272,0.35458075,2630.6,2630.1,0.06449077]
[1730898637590,3.80157,2630.5,2630.1,0.06449077]
[1730898637782,3.80148,2630.6,2629.8,3.80244]
[1730898638014,3.80157,2630.5,2630.2,0.0644282]
[1730898638218,3.80157,2630.5,2629.9,3.80234]
[1730898638399,3.80157,2630.5,2630.3,0.06436564]
[1730898638400,0.5417,2630.4,2630.3,0.06436564]
[1730898638598,0.8961838,2630.4,2629.7,4.62]
[1730898638930,3.80186,2630.3,2629.7,4.62]
[1730898639292,3.80208,2630.2,2629.7,0.8173]
[1730898639624,3.80207,2630.2,2629.5,3.80299]
[1730898639776,4.616634,2630.2,2629.5,3.80299]
[1730898640103,4.616634,2630.2,2629.6,3.80277]
[1730898640275,0.814564,2630.2,2629.5,3.80299]
[1730898640491,0.814564,2630.2,2629.7,3.80268]
[1730898641702,3.80213,2630.1,2629.5,3.80287]
[1730898642031,0.8418554,2630.1,2629.4,4.601]
[1730898642225,0.5417,2629.9,2629.2,3.80342]
[1730898642537,0.5417,2629.9,2628.8,4.62432]
[1730898642678,3.80321,2629.4,2628.8,4.62432]
[1730898642885,0.5417,2629.3,2628.8,4.62432]
[1730898643987,0.5417,2629.3,2628.8,0.8204]
[1730898644239,0.5417,2629.3,2628.8,3.80399]
[1730898644513,0.5417,2629.3,2628.8,4.564798]
[1730898644717,0.5417,2629.3,2628.8,3.80397]
[1730898645519,0.5417,2629.3,2628.9,3.80383]
[1730898646616,0.5417,2629.3,2628.8,3.80401]
[1730898647422,0.5417,2629.3,2628.9,3.80385]
[1730898647938,0.5417,2629.3,2628.8,3.80399]
[1730898648130,0.5417,2629.3,2628.9,3.80381]
[1730898648299,0.5417,2629.3,2628.9,0.84446136]
[1730898648510,0.5417,2629.6,2629.1,3.80358]
[1730898648925,0.5417,2630.1,2629.8,3.80257]
[1730898649169,0.5417,2630.1,2629.3,3.80329]
[1730898649389,3.80258,2629.8,2629.4,0.8169]
[1730898649622,3.80258,2629.8,2629.2,3.80342]
[1730898649939,3.80238,2630.0,2629.2,3.80342]
[1730898650111,3.80244,2629.9,2629.3,3.8032]
[1730898650298,3.80237,2630.0,2629.3,3.8032]
[1730898650496,4.236777,2630.0,2629.3,3.8032]
[1730898650696,4.236777,2630.0,2629.4,0.06531151]
[1730898651031,3.80253,2629.9,2629.4,0.06531151]
[1730898652030,3.80242,2629.9,2629.1,0.8169]
[1730898652203,0.4236827,2629.8,2629.5,0.06524891]
[1730898652407,3.80252,2629.9,2629.1,3.80352]
[1730898652601,0.5417,2630.1,2629.1,3.80352]
[1730898652602,3.80271,2629.7,2629.6,0.06519656]
[1730898652806,0.5417,2629.7,2628.8,0.8082]
[1730898652995,3.80352,2629.2,2628.8,0.8082]
[1730898653194,3.80352,2629.2,2628.7,3.80414]
[1730898653510,3.80352,2629.2,2628.7,4.647748]
[1730898653912,3.80329,2629.3,2628.7,8.451818]
[1730898654139,3.80329,2629.3,2628.6,3.8043]
[1730898654303,3.80367,2629.1,2628.0,3.8051]
[1730898654501,0.5417,2628.9,2628.4,3.80451]
[1730898654740,0.5417,2628.9,2628.4,4.184961]
[1730898654940,0.5417,2628.9,2628.4,0.380451]
[1730898655303,3.80364,2629.1,2628.4,0.380451]
[1730898655511,3.80388,2628.9,2628.3,3.80463]
[1730898655738,0.5417,2629.2,2628.5,3.80437]
[1730898655929,4.34516,2629.2,2628.6,3.80423]
[1730898656445,3.80361,2629.1,2628.5,3.80437]
[1730898656642,0.5417,2629.2,2628.5,3.80436]
[1730898656796,4.34517,2629.2,2628.5,3.80436]
[1730898657000,4.34517,2629.2,2628.6,3.80423]
[1730898657195,4.34517,2629.2,2628.5,3.80436]
[1730898657196,1.356554,2629.2,2628.5,3.80436]
[1730898657447,0.5417,2629.2,2628.3,0.07608579]
[1730898657606,0.5417,2629.2,2628.7,3.80406]
[1730898657806,4.34486,2629.4,2628.8,3.80391]
[1730898658299,4.34486,2629.4,2628.9,3.80387]
[1730898658733,3.80295,2629.6,2629.0,3.80371]
[1730898658734,4.34465,2629.6,2629.0,3.80371]
[1730898658897,1.356431,2629.6,2629.0,3.80371]
[1730898659100,0.5417,2629.6,2629.1,3.80347]
[1730898659297,0.5417,2629.6,2629.1,3.80344]
[1730898659926,0.5417,2629.9,2629.3,3.80328]
[1730898660125,0.35433384,2629.8,2629.4,3.80305]
[1730898660377,0.5417,2629.9,2629.5,3.80297]
[1730898660511,3.80312,2629.5,2628.9,3.80374]
[1730898660705,3.80312,2629.5,2628.8,0.8274]
[1730898660706,3.80307,2629.5,2629.0,3.80362]
[1730898660939,3.80282,2629.7,2629.0,3.8036]
[1730898661145,3.80295,2629.6,2629.0,3.8036]
[1730898661657,3.80295,2629.6,2628.9,0.07606979]
[1730898661658,0.434452,2629.7,2629.2,3.80336]
[1730898661841,0.434452,2629.7,2629.0,3.80361]
[1730898661842,3.80273,2629.7,2629.0,3.80361]
[1730898662050,7.60554,2629.7,2629.1,3.80357]
[1730898662261,3.80273,2629.7,2629.2,3.80342]
[1730898662445,3.80257,2629.8,2629.2,3.80342]
[1730898662689,3.80257,2629.8,2629.2,7.60678]
[1730898662842,3.80257,2629.8,2629.3,3.80321]
[1730898663931,0.5417,2629.9,2629.3,3.80321]
[1730898664262,0.5417,2629.9,2628.9,3.80376]
[1730898664263,3.80317,2629.4,2628.9,3.80376]
[1730898664432,3.80296,2629.6,2628.9,3.80376]
[1730898664963,3.80296,2629.6,2628.8,0.8274]
[1730898664964,3.80329,2629.3,2628.8,4.63141]
[1730898665659,3.80329,2629.3,2628.7,3.80405]
[1730898665859,3.80329,2629.3,2628.9,0.06132491]
[1730898666164,3.80347,2629.2,2629.0,0.06129305]
[1730898666603,3.80347,2629.2,2628.5,8.39309]
[1730898666604,3.80358,2629.1,2628.5,8.39309]
[1730898666865,3.80342,2629.3,2629.1,0.06123043]
[1730898667026,3.80352,2629.2,2628.6,4.643549]
[1730898667221,3.80377,2629.0,2628.5,0.7844]
[1730898667420,3.80398,2628.9,2628.3,3.80471]
[1730898667663,7.60797,2628.9,2628.3,3.80473]
[1730898668064,3.80409,2628.8,2628.3,3.80473]
[1730898668262,3.80422,2628.7,2627.9,4.59591]
[1730898668570,0.5417,2628.9,2627.9,4.59591]
[1730898668571,0.5417,2628.9,2628.0,0.459591]
[1730898668766,3.80466,2628.4,2627.9,0.7907]
[1730898669266,3.80477,2628.3,2627.9,0.7907]
[1730898670350,3.80488,2628.2,2627.3,4.61757]
[1730898670535,3.80528,2628.0,2627.3,4.61757]
[1730898670755,0.5417,2628.3,2627.9,3.80517]
[1730898670942,4.3461,2628.6,2627.9,3.80517]
[1730898671139,3.80453,2628.5,2628.0,0.07610328]
[1730898671363,0.5417,2628.6,2628.1,3.80502]
[1730898671548,3.80394,2628.9,2627.9,0.07609811]
[1730898671867,3.80412,2628.8,2628.3,3.80471]
[1730898672234,3.80394,2628.9,2627.8,3.80542]
[1730898672235,0.5417,2628.6,2627.8,3.80542]
[1730898672447,3.80526,2628.0,2627.5,3.80576]
[1730898672684,4.34637,2628.4,2627.5,0.7812]
[1730898672936,0.5417,2628.4,2628.0,3.80506]
[1730898673244,0.5417,2628.4,2627.8,3.80537]
[1730898673439,0.5417,2628.4,2627.9,3.80522]
[1730898673774,3.80474,2628.3,2627.8,8.371855]
[1730898673982,3.80474,2628.3,2627.9,3.80531]
[1730898674186,3.80474,2628.3,2627.7,3.80551]
[1730898674349,3.80474,2628.3,2627.5,0.7812]
[1730898674350,3.80527,2628.0,2627.5,0.7812]
[1730898674556,3.80527,2628.0,2627.4,3.80593]
[1730898674874,7.61052,2628.0,2627.4,3.80593]
[1730898675042,3.80526,2628.0,2627.4,3.80593]
[1730898675540,3.80532,2627.9,2627.4,3.80593]
[1730898675882,3.80545,2627.9,2627.4,0.837067]
[1730898676055,3.80545,2627.9,2627.3,3.8061]
[1730898676255,4.34715,2627.9,2627.3,3.8061]
[1730898676568,0.5417,2627.9,2627.3,3.8061]
[1730898676779,0.5417,2627.9,2627.2,4.56474]
[1730898676780,3.80547,2627.8,2627.2,4.56474]
[1730898676962,0.5417,2627.9,2627.2,4.56474]
[1730898677157,0.5417,2627.9,2627.2,5.021214]
[1730898677480,3.80549,2627.8,2627.3,3.80609]
[1730898677786,4.34702,2627.9,2627.4,3.80593]
[1730898677986,0.5417,2627.9,2627.6,3.80573]
[1730898678194,0.5417,2627.9,2627.5,3.80588]
[1730898678995,0.5417,2627.9,2627.4,3.80593]
[1730898679194,4.34702,2627.9,2627.4,3.80593]
[1730898680478,3.80432,2628.6,2627.9,3.80529]
[1730898680631,3.80401,2628.8,2627.7,3.80551]
[1730898680788,8.15162,2628.2,2628.0,0.0548439]
[1730898680995,3.80503,2628.1,2627.8,0.05496925]
[1730898681226,3.80503,2628.1,2627.5,4.55971]
[1730898681634,0.5417,2628.2,2627.5,4.55971]
[1730898681916,0.5417,2628.2,2627.7,3.80553]
[1730898682121,0.5417,2628.2,2627.7,7.61104]
[1730898682619,0.5417,2628.2,2627.8,3.80546]
[1730898683180,3.80457,2628.5,2628.0,3.80516]
[1730898683181,0.5417,2628.5,2628.0,3.80516]
[1730898683401,1.63423952,2628.9,2628.0,3.80516]
[1730898683402,2.17593952,2628.9,2628.3,3.80467]
[1730898683706,0.5417,2628.9,2628.4,3.80451]
[1730898683931,0.5417,2628.9,2628.3,3.80473]
[1730898683932,4.34564,2628.9,2628.3,3.80473]
[1730898684090,1.38642752,2628.8,2628.3,7.60946]
[1730898684306,4.34564,2628.9,2628.3,7.60946]
[1730898684522,0.5417,2628.9,2628.6,3.80429]
[1730898684713,0.5417,2628.9,2628.7,3.80408]
[1730898684916,0.5417,2629.2,2628.7,3.80408]
[1730898685117,0.5417,2629.2,2628.8,3.80394]
[1730898685364,4.34478,2629.5,2628.8,3.80393]
[1730898685729,0.5417,2629.8,2629.2,3.80343]
[1730898685826,0.5417,2629.8,2629.1,0.8304]
[1730898686074,0.5417,2629.8,2629.3,3.80319]
[1730898686328,7.60437,2630.1,2629.5,3.80288]
[1730898686509,5.07833356,2630.0,2629.4,3.80312]
[1730898686738,4.724265,2630.0,2629.4,7.60624]
[1730898687025,4.724265,2630.0,2629.6,3.80277]
[1730898687026,0.5417,2630.0,2629.6,3.80277]
[1730898687234,3.80194,2630.3,2629.7,3.80262]
[1730898687235,4.34364,2630.3,2629.7,3.80262]
[1730898688626,0.5417,2630.3,2629.1,0.8304]
[1730898688925,0.5417,2630.3,2629.9,3.80233]
[1730898690535,0.5417,2630.3,2629.9,7.60467]
[1730898690690,0.5417,2630.3,2630.0,3.80224]
[1730898691036,0.434334,2630.3,2629.5,0.8207]
[1730898691203,3.80189,2630.3,2629.7,3.8026]
[1730898691386,3.80165,2630.5,2629.8,3.80247]
[1730898691597,3.80165,2630.5,2630.0,3.80227]
[1730898692093,4.3432,2630.6,2630.0,3.80227]
[1730898692406,4.53592,2630.5,2629.8,7.60493]
[1730898692602,4.53592,2630.5,2629.9,3.80241]
[1730898693036,0.73432,2630.5,2630.0,3.80226]
[1730898693256,0.73432,2630.5,2629.8,3.80248]
[1730898693257,4.53595,2630.5,2629.8,3.80248]
[1730898693440,4.53595,2630.5,2629.9,3.80242]
[1730898694005,3.8017,2630.4,2629.8,3.80248]
[1730898694206,4.689615,2630.4,2629.8,3.80247]
[1730898694440,3.8017,2630.4,2629.8,3.80247]
[1730898694741,2.063308,2630.9,2629.9,0.7867]
[1730898695029,3.80151,2630.6,2629.9,0.7867]
[1730898695226,3.80176,2630.4,2629.9,0.7867]
[1730898695412,3.80176,2630.4,2629.8,3.80245]
[1730898695413,0.760339,2630.3,2629.8,3.80245]
[1730898695730,4.34346,2630.4,2629.8,7.60495]
[1730898695932,4.34346,2630.4,2629.9,0.05256707]
[1730898696146,3.802,2630.2,2629.9,0.05256707]
[1730898696435,0.5417,2630.4,2629.4,0.8097]
[1730898696733,0.5417,2630.4,2630.0,0.05247375]
[1730898696734,4.34354,2630.4,2630.0,0.05247375]
[1730898696944,0.434354,2630.3,2629.5,3.80289]
[1730898697091,3.80213,2630.2,2629.6,3.80284]
[1730898697299,3.80223,2630.1,2629.7,0.0526615]
[1730898697604,3.80223,2630.1,2629.5,3.80288]
[1730898697819,7.6039,2630.3,2629.8,0.05259891]
[1730898698145,3.80194,2630.3,2629.7,3.8027]